fUSD/lending_fUSD_20250202
["ID","MTS","AMOUNT","RATE_DAILY","PERIOD"]
[351303557,1738510247788,-500.0,0.00011364,2]
[351303558,1738510247797,-500.0,0.00011364,2]
[351303559,1738510247807,-1011.6,0.00011364,2]
[351303560,1738510247818,-500.0,0.00011364,2]
[351303561,1738510247827,-500.0,0.00011364,2]
[351303562,1738510247836,-500.0,0.00011364,2]
[351303563,1738510247847,-500.0,0.00011364,2]
[351303564,1738510247857,-500.0,0.00011364,2]
[351303565,1738510247866,-936.42,0.00011364,2]
[351303566,1738510247875,-500.0,0.00011364,2]
[351303567,1738510247885,-1477.09,0.00011364,2]
[351303568,1738510247895,-500.0,0.00011364,2]
[351303569,1738510247904,-500.0,0.00011364,2]
[351303570,1738510247913,-500.0,0.00011364,2]
[351303571,1738510247923,-768.84,0.00011364,2]
[351303572,1738510247932,-506.84453528,0.00011364,2]
[351303573,1738510247941,-500.0,0.00011364,2]
[351303574,1738510247950,-511.1121451,0.00011364,2]
[351303575,1738510247959,-500.0,0.00011364,2]
[351303576,1738510247969,-500.0,0.00011364,2]
[351303577,1738510247978,-500.0,0.00011364,2]
[351303578,1738510247988,-500.0,0.00011364,2]
[351303579,1738510247997,-616.28,0.00011364,2]
[351303580,1738510248006,-500.0,0.00011364,2]
[351303581,1738510248016,-503.63,0.00011364,2]
[351303582,1738510248025,-500.0,0.00011364,2]
[351303583,1738510248034,-500.0,0.00011364,2]
[351303584,1738510248043,-500.0,0.00011364,2]
[351303585,1738510248052,-543.3,0.00011364,2]
[351303586,1738510248061,-500.0,0.00011364,2]
[351303587,1738510248070,-903.25,0.00011364,2]
[351303588,1738510248080,-500.0,0.00011364,2]
[351303589,1738510248090,-500.0,0.00011364,2]
[351303590,1738510248102,-500.0,0.00011364,2]
[351303591,1738510248111,-500.0,0.00011364,2]
[351303592,1738510248124,-500.0,0.00011364,2]
[351303593,1738510248133,-500.0,0.00011364,2]
[351303594,1738510248143,-845.35,0.00011364,2]
[351303595,1738510248153,-532.63,0.00011364,2]
[351303596,1738510248163,-500.0,0.00011364,2]
[351303597,1738510248172,-982.31,0.00011364,2]
[351303598,1738510248182,-594.28,0.00011364,2]
[351303599,1738510248191,-574.96,0.00011364,2]
[351303600,1738510248204,-500.0,0.00011364,2]
[351303601,1738510248214,-500.0,0.00011364,2]
[351303602,1738510248224,-500.0,0.00011364,2]
[351303603,1738510248234,-500.0,0.00011364,2]
[351303604,1738510248244,-500.0,0.00011364,2]
[351303605,1738510248254,-571.57,0.00011364,2]
[351303606,1738510248264,-500.0,0.00011364,2]
[351303607,1738510248273,-500.0,0.00011364,2]
[351303608,1738510248283,-500.0,0.00011364,2]
[351303609,1738510248293,-819.67,0.00011364,2]
[351303610,1738510248303,-500.0,0.00011364,2]
[351303611,1738510248312,-661.66,0.00011364,2]
[351303612,1738510248322,-687.53,0.00011364,2]
[351303613,1738510248331,-555.96,0.00011364,2]
[351303614,1738510248341,-500.0,0.00011364,2]
[351303615,1738510248353,-500.0,0.00011364,2]
[351303616,1738510248362,-500.0,0.00011364,2]
[351303617,1738510248372,-581.42,0.00011364,2]
[351303618,1738510248382,-844.88,0.00011364,2]
[351303619,1738510248391,-500.0,0.00011364,2]
[351303620,1738510248401,-500.0,0.00011364,2]
[351303621,1738510248411,-500.0,0.00011364,2]
[351303622,1738510248421,-500.0,0.00011364,2]
[351303623,1738510248431,-500.0,0.00011364,2]
[351303624,1738510248441,-500.0,0.00011364,2]
[351303625,1738510248451,-500.0,0.00011364,2]
[351303626,1738510248461,-500.0,0.00011364,2]
[351303627,1738510248471,-500.0,0.00011364,2]
[351303628,1738510248480,-500.0,0.00011364,2]
[351303630,1738510248490,-500.0,0.00011364,2]
[351303631,1738510248500,-500.0,0.00011364,2]
[351303632,1738510248510,-666.12,0.00011364,2]
[351303633,1738510248521,-500.0,0.00011364,2]
[351303634,1738510248531,-500.0,0.00011364,2]
[351303635,1738510248540,-500.0,0.00011364,2]
[351303636,1738510248550,-500.0,0.00011364,2]
[351303637,1738510248560,-500.0,0.00011364,2]
[351303638,1738510248570,-500.0,0.00011364,2]
[351303639,1738510248579,-500.0,0.00011364,2]
[351303640,1738510248589,-500.0,0.00011364,2]
[351303641,1738510248603,-500.0,0.00011364,2]
[351303642,1738510248612,-831.26,0.00011364,2]
[351303643,1738510248621,-500.0,0.00011364,2]
[351303644,1738510248631,-500.0,0.00011364,2]
[351303645,1738510248640,-545.92,0.00011364,2]
[351303646,1738510248650,-500.0,0.00011364,2]
[351303647,1738510248659,-694.08,0.00011364,2]
[351303648,1738510248669,-500.0,0.00011364,2]
[351303649,1738510248679,-585.25,0.00011364,2]
[351303650,1738510248688,-635.38,0.00011364,2]
[351303651,1738510248698,-500.0,0.00011364,2]
[351303652,1738510248708,-500.0,0.00011364,2]
[351303653,1738510248718,-500.0,0.00011364,2]
[351303654,1738510248727,-833.18,0.00011364,2]
[351303655,1738510248737,-500.0,0.00011364,2]
[351303656,1738510248747,-500.0,0.00011364,2]
[351303657,1738510248757,-500.0,0.00011364,2]
[351303658,1738510248767,-500.0,0.00011364,2]
[351303659,1738510248776,-628.39,0.00011364,2]
[351303660,1738510248786,-979.96,0.00011364,2]
[351303661,1738510248795,-500.26,0.00011364,2]
[351303662,1738510248806,-909.26,0.00011364,2]
[351303663,1738510248816,-500.0,0.00011364,2]
[351303664,1738510248826,-594.94,0.00011364,2]
[351303665,1738510248836,-500.0,0.00011364,2]
[351303666,1738510248848,-930.71,0.00011364,2]
[351303667,1738510248858,-500.0,0.00011364,2]
[351303668,1738510248868,-500.0,0.00011364,2]
[351303669,1738510248878,-500.0,0.00011364,2]
[351303670,1738510248888,-500.0,0.00011364,2]
[351303671,1738510248897,-608.46,0.00011364,2]
[351303672,1738510248907,-500.0,0.00011364,2]
[351303673,1738510248918,-500.0,0.00011364,2]
[351303674,1738510248928,-500.0,0.00011364,2]
[351303675,1738510248938,-500.0,0.00011364,2]
[351303676,1738510248948,-500.0,0.00011364,2]
[351303677,1738510248958,-1314.91,0.00011364,2]
[351303678,1738510248968,-663.27,0.00011364,2]
[351303679,1738510248978,-500.0,0.00011364,2]
[351303680,1738510248988,-685.0,0.00011364,2]
[351303681,1738510248999,-748.7,0.00011364,2]
[351303682,1738510249009,-885.91,0.00011364,2]
[351303683,1738510249019,-500.0,0.00011364,2]
[351303684,1738510249027,-500.0,0.00011364,2]
[351303685,1738510249037,-500.0,0.00011364,2]
[351303686,1738510249048,-500.0,0.00011364,2]
[351303687,1738510249058,-798.84,0.00011364,2]
[351303688,1738510249068,-500.0,0.00011364,2]
[351303689,1738510249077,-2076.9,0.00011364,2]
[351303690,1738510249087,-500.0,0.00011364,2]
[351303691,1738510249099,-649.75,0.00011364,2]
[351303692,1738510249110,-856.19,0.00011364,2]
[351303693,1738510249123,-1069.37,0.00011364,2]
[351303694,1738510249133,-2189.05,0.00011364,2]
[351303695,1738510249143,-1210.27,0.00011364,2]
[351303696,1738510249155,-500.0,0.00011364,2]
[351303697,1738510249164,-500.0,0.00011364,2]
[351303698,1738510249174,-1144.75,0.00011364,2]
[351303699,1738510249185,-500.0,0.00011364,2]
[351303700,1738510249196,-1154.02,0.00011364,2]
[351303701,1738510249206,-726.06,0.00011364,2]
[351303702,1738510249215,-500.0,0.00011364,2]
[351303703,1738510249225,-500.0,0.00011364,2]
[351303704,1738510249235,-1379.33,0.00011364,2]
[351303705,1738510249244,-881.31,0.00011364,2]
[351303706,1738510249254,-565.48,0.00011364,2]
[351303707,1738510249264,-888.37,0.00011364,2]
[351303708,1738510249273,-777.35,0.00011364,2]
[351303709,1738510249283,-1523.76,0.00011364,2]
[351303710,1738510249292,-1826.69,0.00011364,2]
[351303711,1738510249302,-720.28,0.00011364,2]
[351303712,1738510249312,-503.43,0.00011364,2]
[351303713,1738510249321,-1146.44,0.00011364,2]
[351303714,1738510249331,-500.0,0.00011364,2]
[351303715,1738510249340,-500.0,0.00011364,2]
[351303716,1738510249352,-500.0,0.00011364,2]
[351303717,1738510249362,-618.0,0.00011364,2]
[351303718,1738510249372,-1774.56,0.00011364,2]
[351303719,1738510249382,-500.0,0.00011364,2]
[351303720,1738510249392,-599.85,0.00011364,2]
[351303721,1738510249401,-1649.19,0.00011364,2]
[351303722,1738510249411,-718.66,0.00011364,2]
[351303723,1738510249422,-500.0,0.00011364,2]
[351303724,1738510249431,-724.37,0.00011364,2]
[351303725,1738510249441,-1961.58,0.00011364,2]
[351303726,1738510249451,-502.88,0.00011364,2]
[351303727,1738510249462,-500.0,0.00011364,2]
[351303728,1738510249472,-500.0,0.00011364,2]
[351303729,1738510249482,-1387.59,0.00011364,2]
[351303730,1738510249492,-169.35464611,0.00011364,2]
[351303731,1738510249502,-230.61523859,0.00011364,2]
[351303732,1738510249512,-1203.75,0.00011364,2]
[351303733,1738510249522,-419.86463679,0.00011364,2]
[351303734,1738510249532,-500.0,0.00011364,2]
[351303735,1738510249542,-765.91,0.00011364,2]
[351303736,1738510249551,-500.0,0.00011364,2]
[351303737,1738510249561,-504.48,0.00011364,2]
[351303738,1738510249570,-500.0,0.00011364,2]
[351303739,1738510249580,-500.0,0.00011364,2]
[351303740,1738510249590,-500.0,0.00011364,2]
[351303741,1738510249602,-5511.34,0.00011364,2]
[351303742,1738510249612,-597.1,0.00011364,2]
[351303743,1738510249623,-6356.29,0.00011364,2]
[351303744,1738510249633,-1316.04,0.00011364,2]
[351303745,1738510249642,-2359.59,0.00011364,2]
[351303746,1738510249652,-500.0,0.00011364,2]
[351303747,1738510249662,-1273.85,0.00011364,2]
[351303748,1738510249672,-721.96,0.00011364,2]
[351303749,1738510249682,-3564.92,0.00011364,2]
[351303750,1738510249693,-500.0,0.00011364,2]
[351303751,1738510249704,-4065.49,0.00011364,2]
[351303752,1738510249714,-1715.07,0.00011364,2]
[351303753,1738510249724,-1170.67,0.00011364,2]
[351303754,1738510249735,-1313.72,0.00011364,2]
[351303755,1738510249744,-955.35,0.00011364,2]
[351303756,1738510249755,-1706.27,0.00011364,2]
[351303757,1738510249765,-822.83,0.00011364,2]
[351303758,1738510249775,-607.06,0.00011364,2]
[351303759,1738510249785,-500.0,0.00011364,2]
[351303760,1738510249795,-3729.61,0.00011364,2]
[351303761,1738510249805,-1246.9,0.00011364,2]
[351303762,1738510249815,-500.0,0.00011364,2]
[351303763,1738510249825,-655.12,0.00011364,2]
[351303764,1738510249834,-4100.81,0.00011364,2]
[351303765,1738510249844,-500.0,0.00011364,2]
[351303766,1738510249855,-500.0,0.00011364,2]
[351303767,1738510249864,-500.0,0.00011364,2]
[351303768,1738510249874,-1742.51,0.00011364,2]
[351303769,1738510249885,-834.16,0.00011364,2]
[351303770,1738510249895,-1402.83,0.00011364,2]
[351303771,1738510249905,-660.11,0.00011364,2]
[351303772,1738510249915,-924.02,0.00011364,2]
[351303773,1738510249925,-556.09,0.00011364,2]
[351303774,1738510249935,-1766.28,0.00011364,2]
[351303775,1738510249944,-500.0,0.00011364,2]
[351303776,1738510249954,-1614.2,0.00011364,2]
[351303777,1738510249965,-716.07,0.00011364,2]
[351303778,1738510249974,-1557.23,0.00011364,2]
[351303779,1738510249985,-463.84009369,0.00011364,2]
[351303780,1738510249995,-500.0,0.00011364,2]
[351303781,1738510250005,-1018.9,0.00011364,2]
[351303782,1738510250016,-732.39,0.00011364,2]
[351303783,1738510250026,-144460.83484151,0.00011365,2]
[351303784,1738510250036,-500.0,0.00011365,2]
[351303785,1738510250047,-500.0,0.00011365,2]
[351303786,1738510250057,-500.0,0.00011365,2]
[351303787,1738510250067,-500.0,0.00011365,2]
[351303788,1738510250076,-500.0,0.00011365,2]
[351303789,1738510250086,-500.0,0.00011365,2]
[351303790,1738510250097,-500.0,0.00011365,2]
[351303791,1738510250110,-500.0,0.00011365,2]
[351303792,1738510250120,-500.0,0.00011365,2]
[351303793,1738510250130,-500.0,0.00011365,2]
[351303794,1738510250140,-500.0,0.00011365,2]
[351303795,1738510250150,-500.0,0.00011365,2]
[351303796,1738510250160,-500.0,0.00011365,2]
[351303797,1738510250170,-500.0,0.00011365,2]
[351303798,1738510250180,-500.0,0.00011365,2]
[351303799,1738510250189,-500.0,0.00011365,2]
[351303800,1738510250201,-500.0,0.00011365,2]
[351303801,1738510250211,-500.0,0.00011365,2]
[351303802,1738510250221,-500.0,0.00011365,2]
[351303803,1738510250231,-500.0,0.00011365,2]
[351303804,1738510250240,-500.0,0.00011365,2]
[351303805,1738510250251,-200.07357533,0.00011365,2]
[351303806,1738510250261,-500.0,0.00011365,2]
[351303807,1738510250271,-500.0,0.00011365,2]
[351303808,1738510250281,-500.0,0.00011365,2]
[351303809,1738510250291,-500.0,0.00011365,2]
[351303810,1738510250300,-500.0,0.00011365,2]
[351303811,1738510250311,-500.0,0.00011365,2]
[351303812,1738510250321,-500.0,0.00011365,2]
[351303813,1738510250330,-500.0,0.00011365,2]
[351303814,1738510250340,-590.87375651,0.00011365,2]
[351303815,1738510250352,-500.0,0.00011365,2]
[351303816,1738510250363,-500.0,0.00011365,2]
[351303817,1738510250374,-500.0,0.00011365,2]
[351303818,1738510250384,-161.24744685,0.00011365,2]
[351303819,1738510250395,-500.0,0.00011365,2]
[351303820,1738510250405,-500.0,0.00011365,2]
[351303821,1738510250415,-500.0,0.00011365,2]
[351303822,1738510250425,-500.0,0.00011365,2]
[351303823,1738510250435,-500.0,0.00011365,2]
[351303824,1738510250445,-500.0,0.00011365,2]
[351303825,1738510250454,-500.0,0.00011365,2]
[351303826,1738510250464,-500.0,0.00011365,2]
[351303827,1738510250474,-342.27261283,0.00011365,2]
[351303828,1738510250484,-500.0,0.00011365,2]
[351303829,1738510250494,-500.0,0.00011365,2]
[351303830,1738510250504,-503.62682563,0.00011365,2]
[351303831,1738510250514,-500.0,0.00011365,2]
[351303832,1738510250524,-500.0,0.00011365,2]
[351303833,1738510250539,-500.0,0.00011365,2]
[351303834,1738510250548,-500.0,0.00011365,2]
[351303835,1738510250558,-500.0,0.00011365,2]
[351303836,1738510250568,-500.0,0.00011365,2]
[351303837,1738510250577,-500.0,0.00011365,2]
[351303838,1738510250588,-500.0,0.00011365,2]
[351303839,1738510250599,-500.0,0.00011365,2]
[351303840,1738510250608,-500.0,0.00011365,2]
[351303841,1738510250618,-500.0,0.00011365,2]
[351303842,1738510250627,-500.0,0.00011365,2]
[351303843,1738510250637,-500.0,0.00011365,2]
[351303844,1738510250647,-500.0,0.00011365,2]
[351303845,1738510250657,-500.0,0.00011365,2]
[351303846,1738510250667,-500.0,0.00011365,2]
[351303847,1738510250677,-500.0,0.00011365,2]
[351303848,1738510250686,-500.0,0.00011365,2]
[351303849,1738510250696,-654.03,0.00011365,2]
[351303850,1738510250706,-500.0,0.00011365,2]
[351303851,1738510250716,-1090.95,0.00011365,2]
[351303852,1738510250726,-500.0,0.00011365,2]
[351303853,1738510250736,-1124.91,0.00011365,2]
[351303854,1738510250745,-1284.23,0.00011365,2]
[351303855,1738510250755,-1124.94,0.00011365,2]
[351303856,1738510250765,-761.48,0.00011365,2]
[351303857,1738510250774,-500.0,0.00011365,2]
[351303858,1738510250784,-570.62,0.00011365,2]
[351303859,1738510250794,-500.0,0.00011365,2]
[351303860,1738510250804,-1544.05,0.00011365,2]
[351303861,1738510250814,-754.34,0.00011365,2]
[351303862,1738510250824,-1351.82,0.00011365,2]
[351303863,1738510250833,-500.0,0.00011365,2]
[351303864,1738510250843,-1435.45,0.00011365,2]
[351303865,1738510250855,-521.13,0.00011365,2]
[351303866,1738510250865,-500.0,0.00011365,2]
[351303867,1738510250874,-734.61,0.00011365,2]
[351303868,1738510250884,-500.0,0.00011365,2]
[351303869,1738510250893,-1025.37,0.00011365,2]
[351303870,1738510250904,-500.0,0.00011365,2]
[351303871,1738510250914,-500.0,0.00011365,2]
[351303872,1738510250924,-522.77,0.00011365,2]
[351303873,1738510250934,-676.06,0.00011365,2]
[351303874,1738510250943,-500.0,0.00011365,2]
[351303875,1738510250953,-1146.44,0.00011365,2]
[351303876,1738510250963,-500.0,0.00011369,2]
[351303877,1738510250973,-594.56,0.00011369,2]
[351303878,1738510250983,-500.0,0.00011369,2]
[351303879,1738510250993,-500.0,0.00011369,2]
[351303880,1738510251003,-500.0,0.00011369,2]
[351303881,1738510251013,-500.0,0.00011369,2]
[351303882,1738510251023,-500.0,0.00011369,2]
[351303883,1738510251032,-500.0,0.00011369,2]
[351303884,1738510251042,-500.0,0.00011369,2]
[351303885,1738510251052,-500.0,0.00011369,2]
[351303886,1738510251061,-500.0,0.00011369,2]
[351303887,1738510251071,-340.81436024,0.00011376,2]
[351303888,1738510251082,-2371.1166249,0.00011384,2]
[351303889,1738510251091,-619.73982996,0.00011384,2]
[351303890,1738510251104,-250.0,0.000114,2]
[351303891,1738510251115,-250.0,0.000114,2]
[351303892,1738510251128,-250.0,0.000114,2]
[351303893,1738510251137,-250.0,0.000114,2]
[351303894,1738510251147,-250.0,0.000114,2]
[351303895,1738510251156,-250.0,0.000114,2]
[351303896,1738510251167,-250.0,0.000114,2]
[351303897,1738510251178,-250.0,0.000114,2]
[351303898,1738510251190,-250.0,0.000114,2]
[351303899,1738510251201,-250.0,0.000114,2]
[351303900,1738510251211,-250.0,0.000114,2]
[351303901,1738510251221,-250.0,0.000114,2]
[351303902,1738510251231,-250.0,0.000114,2]
[351303903,1738510251241,-250.0,0.000114,2]
[351303904,1738510251252,-250.0,0.000114,2]
[351303905,1738510251262,-250.0,0.000114,2]
[351303906,1738510251272,-250.0,0.000114,2]
[351303907,1738510251282,-250.0,0.000114,2]
[351303908,1738510251292,-250.0,0.000114,2]
[351303909,1738510251301,-250.0,0.000114,2]
[351303910,1738510251312,-250.0,0.000114,2]
[351303911,1738510251322,-250.0,0.000114,2]
[351303912,1738510251332,-250.0,0.000114,2]
[351303913,1738510251342,-250.0,0.000114,2]
[351303914,1738510251358,-250.0,0.000114,2]
[351303915,1738510251368,-250.0,0.000114,2]
[351303916,1738510251378,-250.0,0.000114,2]
[351303917,1738510251389,-250.0,0.000114,2]
[351303918,1738510251399,-250.0,0.000114,2]
[351303919,1738510251409,-250.0,0.000114,2]
[351303920,1738510251420,-250.0,0.000114,2]
[351303921,1738510251430,-250.0,0.000114,2]
[351303922,1738510251440,-250.0,0.000114,2]
[351303923,1738510251451,-250.0,0.000114,2]
[351303924,1738510251462,-250.0,0.000114,2]
[351303925,1738510251472,-250.0,0.000114,2]
[351303926,1738510251483,-250.0,0.000114,2]
[351303927,1738510251493,-167.92444393,0.00011402,2]
[351303928,1738510251503,-608774.99686948,0.00011437,2]
[351303929,1738510251513,-500.0,0.00011438,2]
[351303930,1738510251524,-500.0,0.00011438,2]
[351303931,1738510251535,-500.0,0.00011438,2]
[351303932,1738510251545,-2371.1166249,0.0001147,2]
[351303933,1738510251555,-340.81436024,0.00011487,2]
[351303934,1738510251565,-500.0,0.000115,2]
[351303935,1738510251575,-500.0,0.000115,2]
[351303936,1738510251584,-500.0,0.000115,2]
[351303937,1738510251594,-500.0,0.000115,2]
[351303938,1738510251607,-500.0,0.000115,2]
[351303939,1738510251617,-500.0,0.000115,2]
[351303940,1738510251628,-500.0,0.000115,2]
[351303941,1738510251638,-500.0,0.000115,2]
[351303942,1738510251856,-500.0,0.000115,2]
[351303943,1738510251866,-500.0,0.000115,2]
[351303944,1738510251876,-500.0,0.000115,2]
[351303945,1738510251886,-500.0,0.000115,2]
[351303946,1738510251896,-500.0,0.000115,2]
[351303947,1738510251906,-500.0,0.000115,2]
[351303948,1738510251915,-500.0,0.000115,2]
[351303949,1738510251925,-500.0,0.000115,2]
[351303950,1738510251935,-500.0,0.000115,2]
[351303951,1738510251944,-500.0,0.000115,2]
[351303952,1738510251954,-500.0,0.000115,2]
[351303953,1738510251964,-500.0,0.000115,2]
[351303954,1738510251975,-500.0,0.000115,2]
[351303955,1738510251985,-500.0,0.000115,2]
[351303956,1738510251994,-500.0,0.000115,2]
[351303957,1738510252003,-500.0,0.000115,2]
[351303958,1738510252013,-500.0,0.000115,2]
[351303959,1738510252022,-500.0,0.000115,2]
[351303960,1738510252032,-500.0,0.000115,2]
[351303961,1738510252041,-500.0,0.000115,2]
[351303962,1738510252051,-500.0,0.000115,2]
[351303963,1738510252061,-500.0,0.000115,2]
[351303964,1738510252070,-500.0,0.000115,2]
[351303965,1738510252080,-500.0,0.000115,2]
[351303966,1738510252089,-500.0,0.000115,2]
[351303967,1738510252101,-500.0,0.000115,2]
[351303968,1738510252112,-500.0,0.000115,2]
[351303969,1738510252125,-500.0,0.000115,2]
[351303970,1738510252134,-500.0,0.000115,2]
[351303971,1738510252143,-500.0,0.000115,2]
[351303972,1738510252153,-500.0,0.000115,2]
[351303973,1738510252162,-500.0,0.000115,2]
[351303974,1738510252172,-500.0,0.000115,2]
[351303975,1738510252181,-500.0,0.000115,2]
[351303976,1738510252191,-500.0,0.000115,2]
[351303977,1738510252201,-500.0,0.000115,2]
[351303978,1738510252213,-500.0,0.000115,2]
[351303979,1738510252227,-500.0,0.000115,2]
[351303980,1738510252237,-500.0,0.000115,2]
[351303981,1738510252247,-500.0,0.000115,2]
[351303982,1738510252256,-500.0,0.000115,2]
[351303983,1738510252265,-500.0,0.000115,2]
[351303984,1738510252275,-216.74879828,0.000115,2]
[351303985,1738510252284,-500.0,0.000115,2]
[351303986,1738510252294,-500.0,0.000115,2]
[351303987,1738510252310,-500.0,0.000115,2]
[351303988,1738510252326,-500.0,0.000115,2]
[351303989,1738510252336,-500.0,0.000115,2]
[351303990,1738510252345,-500.0,0.000115,2]
[351303991,1738510252356,-500.0,0.000115,2]
[351303992,1738510252366,-500.0,0.000115,2]
[351303993,1738510252375,-349.9213436,0.000115,2]
[351303994,1738510252385,-500.0,0.000115,2]
[351303995,1738510252395,-500.0,0.000115,2]
[351303996,1738510252404,-500.0,0.000115,2]
[351303997,1738510252414,-618.96,0.000115,2]
[351303998,1738510252424,-500.0,0.000115,2]
[351303999,1738510252433,-500.0,0.000115,2]
[351304000,1738510252442,-500.0,0.000115,2]
[351304001,1738510252451,-500.0,0.000115,2]
[351304002,1738510252460,-524.5979489,0.000115,2]
[351304003,1738510252470,-500.0,0.000115,2]
[351304004,1738510252479,-500.0,0.000115,2]
[351304005,1738510252489,-526.80327295,0.000115,2]
[351304006,1738510252499,-500.0,0.000115,2]
[351304007,1738510252509,-500.0,0.000115,2]
[351304008,1738510252518,-500.0,0.000115,2]
[351304009,1738510252528,-500.0,0.000115,2]
[351304010,1738510252538,-500.0,0.000115,2]
[351304011,1738510252548,-500.0,0.000115,2]
[351304012,1738510252557,-468.30390687,0.000115,2]
[351304013,1738510252567,-500.0,0.000115,2]
[351304014,1738510252578,-500.0,0.000115,2]
[351304015,1738510252587,-500.0,0.000115,2]
[351304016,1738510252597,-500.0,0.000115,2]
[351304017,1738510252607,-500.0,0.000115,2]
[351304018,1738510252616,-388.16241727,0.000115,2]
[351304019,1738510252625,-500.0,0.000115,2]
[351304020,1738510252635,-500.0,0.000115,2]
[351304021,1738510252645,-500.0,0.000115,2]
[351304022,1738510252655,-500.0,0.000115,2]
[351304023,1738510252664,-526.62602632,0.000115,2]
[351304024,1738510252674,-500.0,0.000115,2]
[351304025,1738510252683,-500.0,0.000115,2]
[351304026,1738510252693,-500.0,0.000115,2]
[351304027,1738510252702,-500.0,0.000115,2]
[351304028,1738510252711,-500.0,0.000115,2]
[351304029,1738510252721,-500.0,0.000115,2]
[351304030,1738510252730,-500.0,0.000115,2]
[351304031,1738510252740,-500.0,0.000115,2]
[351304032,1738510252749,-551.68,0.000115,2]
[351304033,1738510252759,-500.0,0.000115,2]
[351304034,1738510252769,-500.0,0.000115,2]
[351304035,1738510252778,-500.0,0.000115,2]
[351304036,1738510252788,-500.0,0.000115,2]
[351304037,1738510252797,-500.0,0.000115,2]
[351304038,1738510252806,-500.0,0.000115,2]
[351304039,1738510252816,-500.0,0.000115,2]
[351304040,1738510252825,-500.0,0.000115,2]
[351304041,1738510252835,-500.0,0.000115,2]
[351304042,1738510252844,-500.0,0.000115,2]
[351304043,1738510252856,-500.0,0.000115,2]
[351304044,1738510252866,-500.0,0.000115,2]
[351304045,1738510252875,-500.0,0.000115,2]
[351304046,1738510252885,-500.0,0.000115,2]
[351304047,1738510252894,-552.9,0.000115,2]
[351304048,1738510252904,-500.0,0.000115,2]
[351304049,1738510252913,-500.0,0.000115,2]
[351304050,1738510252923,-500.0,0.000115,2]
[351304051,1738510252932,-500.0,0.000115,2]
[351304052,1738510252941,-500.0,0.000115,2]
[351304053,1738510252951,-500.0,0.000115,2]
[351304054,1738510252960,-500.0,0.000115,2]
[351304055,1738510252970,-500.0,0.000115,2]
[351304056,1738510252979,-500.0,0.000115,2]
[351304057,1738510252989,-500.0,0.000115,2]